bitfinex/quotes_SOLUSD_20250413
["timestamp","ask_amount","ask_price","bid_price","bid_amount"]
[1744573474408,34.22248471,128.27,128.19,1.5008]
[1744573474598,40.83516381,128.22,128.18,6.6093]
[1744573474804,19.4916,128.26,128.18,6.6093]
[1744573475101,40.83516381,128.2,128.18,6.6093]
[1744573475310,40.83516381,128.21,128.18,6.6093]
[1744573475917,40.83516381,128.19,128.14,267.46]
[1744573476115,40.83516381,128.17,128.14,267.46]
[1744573476320,40.83516381,128.16,128.13,7.9688]
[1744573476518,40.83516381,128.17,128.13,15.7733]
[1744573476711,40.83516381,128.24,128.15,40.83516381]
[1744573476931,40.83516381,128.21,128.16,40.83516381]
[1744573477109,26.0,128.24,128.15,40.83516381]
[1744573477308,40.83516381,128.21,128.15,40.83516381]
[1744573477508,40.83516381,128.2,128.15,40.83516381]
[1744573477704,40.83516381,128.19,128.14,40.83516381]
[1744573478038,40.83516381,128.21,128.15,40.83516381]
[1744573478206,40.83516381,128.19,128.14,48.63866381]
[1744573478405,40.83516381,128.15,128.13,7.9688]
[1744573478710,40.83516381,128.14,128.12,0.063]
[1744573478913,40.83516381,128.16,128.12,0.063]
[1744573478914,66.83516381,128.13,128.12,0.063]
[1744573479507,67.26164852,128.13,128.12,0.063]
[1744573479910,85.91129738,128.13,128.12,0.063]
[1744573480107,85.91129738,128.13,128.08,0.063]
[1744573480108,42.37181043,128.08,128.06,0.063]
[1744573480327,26.45844886,128.06,128.01,47.21354758]
[1744573480529,40.83516381,128.02,128.01,47.21354758]
[1744573480911,7.8088,128.06,128.01,0.03]
[1744573481113,40.83516381,128.03,128.01,0.03]
[1744573481560,7.8088,128.06,128.01,0.03]
[1744573481731,40.83516381,128.03,128.01,0.03]
[1744573482135,40.83516381,128.02,128.01,0.03]
[1744573482345,49.07284852,128.02,128.01,0.03]
[1744573482541,48.64636381,128.02,128.01,0.03]
[1744573482741,49.07284852,128.02,128.01,0.03]
[1744573483345,19.07613357,128.01,127.99,0.063]
[1744573483555,26.0,127.97,127.89,7.8187]
[1744573483756,26.0,127.97,127.89,48.65386381]
[1744573483971,40.83516381,127.94,127.89,48.65386381]
[1744573484267,40.83516381,128.0,127.92,1.0]
[1744573484460,40.83516381,127.95,127.92,1.0]
[1744573484643,40.83516381,127.94,127.92,1.0]
[1744573484838,40.83516381,127.94,127.9,7.8183]
[1744573485082,40.83516381,127.91,127.88,8.7825]
[1744573485269,40.83516381,127.9,127.89,1.0]
[1744573485571,40.83516381,127.9,127.88,1.0]
[1744573485742,40.83516381,127.89,127.88,1.0]
[1744573486143,26.0,127.96,127.89,1.0]
[1744573486358,40.83516381,127.91,127.89,1.0]
[1744573486555,40.83516381,127.9,127.88,1.0]
[1744573486938,7.8155,127.95,127.88,1.0]
[1744573487156,40.83516381,127.89,127.85,7.8215]
[1744573487363,40.83516381,127.91,127.88,1.0]
[1744573487580,40.83516381,127.91,127.86,40.83516381]
[1744573487872,33.8145,127.97,127.89,1.0]
[1744573488062,7.8134,127.99,127.93,1.0]
[1744573488367,40.83516381,128.0,127.96,1.0]
[1744573488559,40.83516381,128.01,127.97,1.0]
[1744573488868,7.8107,128.03,127.97,1.0]
[1744573489071,40.83516381,128.0,127.96,7.8148]
[1744573489373,40.83516381,127.99,127.96,1.0]
[1744573489573,40.83516381,127.97,127.95,6.1614]
[1744573490075,27.3373,128.03,127.95,6.1614]
[1744573490273,40.83516381,127.97,127.95,6.1614]
[1744573490481,27.3373,128.03,127.95,6.1614]
[1744573490643,40.83516381,127.96,127.92,2.6211]
[1744573490841,40.83516381,127.95,127.92,10.4384]
[1744573491171,40.83516381,127.95,127.92,1.6211]
[1744573491375,40.83516381,127.93,127.9,1.0]
[1744573491577,0.14216157,127.94,127.85,6.1614]
[1744573491877,40.83516381,127.87,127.86,1.0]
[1744573492456,40.83516381,127.87,127.85,7.1614]
[1744573492854,7.8179,127.91,127.85,7.1614]
[1744573493058,40.83516381,127.87,127.85,7.1614]
[1744573494178,7.8179,127.91,127.85,7.1614]
[1744573494349,40.83516381,127.87,127.85,7.1614]
[1744573494553,40.83516381,127.86,127.81,1.0]
[1744573494750,40.83516381,127.82,127.8,7.7825]
[1744573494954,40.83516381,127.81,127.8,8.7825]
[1744573495167,40.83516381,127.82,127.8,7.7825]
[1744573495362,40.83516381,127.82,127.8,8.7825]
[1744573496479,40.83516381,127.81,127.79,0.03]
[1744573497378,40.83516381,127.8,127.79,0.03]
[1744573498086,40.83516381,127.8,127.79,1.03]
[1744573498578,40.83516381,127.8,127.79,0.03]
[1744573498957,48.65986381,127.8,127.79,0.03]
[1744573499181,40.83516381,127.8,127.79,0.03]
[1744573499686,7.8242,127.81,127.79,0.03]
[1744573499859,40.83516381,127.8,127.79,0.03]
[1744573500363,7.8242,127.81,127.79,0.03]
[1744573500664,48.65986381,127.8,127.79,0.03]
[1744573500858,49.08634852,127.8,127.79,0.03]
[1744573501059,48.65986381,127.8,127.79,0.03]
[1744573501586,40.83516381,127.8,127.79,0.03]
[1744573502257,59.76913581,127.8,127.79,0.0001]
[1744573502453,59.76913581,127.8,127.77,0.0001]
[1744573502454,44.933972,127.78,127.77,0.0001]
[1744573502668,8.25298471,127.77,127.75,0.03]
[1744573502871,40.83516381,127.76,127.75,0.03]
[1744573503083,81.67032762,127.76,127.75,0.03]
[1744573503254,82.09681233,127.76,127.75,0.03]
[1744573503458,0.42648471,127.71,127.7,0.03]
[1744573503676,0.42648471,127.71,127.66,0.03]
[1744573503677,26.0,127.68,127.66,0.03]
[1744573503892,40.83516381,127.67,127.66,0.03]
[1744573504067,41.26164852,127.67,127.66,0.03]
[1744573504392,19.07613357,127.66,127.59,6.1676]
[1744573504687,40.83516381,127.62,127.6,1.0]
[1744573504870,40.83516381,127.64,127.59,7.1676]
[1744573505073,40.83516381,127.64,127.61,1.0]
[1744573505276,40.83516381,127.62,127.59,7.1676]
[1744573505469,40.83516381,127.6,127.58,1.0]
[1744573505698,26.0,127.65,127.6,1.0]
[1744573505866,40.83516381,127.62,127.6,1.03]
[1744573506068,40.83516381,127.61,127.6,0.03]
[1744573506672,48.67146381,127.61,127.6,0.03]
[1744573506962,26.0,127.65,127.6,0.03]
[1744573506963,26.0,127.65,127.6,1.03]
[1744573507177,40.83516381,127.63,127.6,0.03]
[1744573507479,40.83516381,127.61,127.6,0.03]
[1744573507681,81.67032762,127.61,127.6,0.03]
[1744573507982,0.42648471,127.57,127.56,2.8624617]
[1744573508161,26.0,127.54,127.49,8.0401]
[1744573508877,40.83516381,127.5,127.49,0.03]
[1744573509456,7.8408,127.54,127.49,1.03]
[1744573509672,40.83516381,127.51,127.49,1.03]
[1744573509876,40.83516381,127.5,127.49,0.03]
[1744573510093,59.91129738,127.5,127.44,1.0]
[1744573510261,59.91129738,127.5,127.39,1.0]
[1744573510262,40.83516381,127.45,127.39,1.0]
[1744573510461,40.83516381,127.45,127.4,49.68426381]
[1744573510680,40.83516381,127.45,127.4,8.8491]
[1744573510885,40.83516381,127.45,127.4,49.68426381]
[1744573511079,40.83516381,127.45,127.44,1.0]
[1744573511383,40.83516381,127.45,127.4,1.0]
[1744573511575,0.14216157,127.49,127.44,1.0]
[1744573511773,40.83516381,127.52,127.46,1.0]
[1744573511774,7.98406157,127.52,127.46,1.0]
[1744573511983,40.83516381,127.51,127.48,1.0]
[1744573512172,7.8394,127.56,127.49,1.0]
[1744573512366,7.8389,127.57,127.5,40.83516381]
[1744573512572,0.14216157,127.59,127.53,1.0]
[1744573512867,40.83516381,127.6,127.52,7.8416]
[1744573513072,7.8357,127.62,127.54,1.0]
[1744573513277,40.83516381,127.55,127.48,7.0861]
[1744573513476,40.83516381,127.49,127.43,1.0]
[1744573513667,40.83516381,127.45,127.43,7.8474]
[1744573513865,0.14216157,127.5,127.43,7.8474]
[1744573514092,40.83516381,127.48,127.47,1.0]
[1744573514393,0.14216157,127.54,127.47,1.0]
[1744573514394,40.83516381,127.56,127.51,1.0]
[1744573514594,40.83516381,127.54,127.5,1.0]
[1744573514897,7.97876157,127.61,127.54,7.8406]
[1744573515129,7.8351,127.63,127.56,1.0]
[1744573515266,40.83516381,127.59,127.57,1.0]
[1744573515468,7.97726157,127.63,127.57,1.0]
[1744573515684,7.8351,127.63,127.57,1.0]
[1744573515894,7.8351,127.63,127.54,7.8406]
[1744573515895,40.83516381,127.59,127.55,1.0]
[1744573516091,276.6545,127.65,127.59,1.0]
[1744573516286,40.83516381,127.62,127.59,1.0]
[1744573516506,40.83516381,127.63,127.6,1.0]
[1744573516683,40.83516381,127.61,127.57,1.0]
[1744573516996,40.83516381,127.58,127.54,1.0]
[1744573517195,40.83516381,127.55,127.49,1.0]
[1744573517392,26.0,127.57,127.53,1.0]
[1744573517564,40.83516381,127.54,127.51,1.03]
[1744573517764,26.0,127.57,127.51,0.03]
[1744573517765,40.83516381,127.52,127.51,0.03]
[1744573518000,81.81248919,127.52,127.51,0.03]
[1744573518175,100.74646119,127.52,127.51,0.03]
[1744573518372,0.14216157,127.54,127.51,0.03]
[1744573518670,40.83516381,127.52,127.51,0.03]
[1744573518883,40.83516381,127.54,127.52,1.0]
[1744573519499,40.83516381,127.53,127.51,0.03]
[1744573519799,0.14216157,127.55,127.51,0.03]
[1744573519983,100.74646119,127.52,127.51,0.03]
[1744573520184,40.83516381,127.52,127.44,1.0]
[1744573520391,40.83516381,127.52,127.42,47.10736381]
[1744573520392,40.83516381,127.45,127.42,7.2722]
[1744573520594,26.0,127.48,127.44,1.0]
[1744573520909,7.843,127.51,127.46,1.0]
[1744573521099,40.83516381,127.49,127.47,1.0]
[1744573521294,64.41516381,127.52,127.47,1.0]
[1744573521499,40.83516381,127.52,127.48,1.0]
[1744573521806,40.83516381,127.49,127.46,1.0]
[1744573522007,40.83516381,127.48,127.47,1.0]
[1744573522211,40.83516381,127.52,127.47,1.0]
[1744573522386,40.83516381,127.48,127.47,1.0]
[1744573522911,40.83516381,127.53,127.51,1.0]
[1744573523097,7.8376,127.59,127.55,1.0]
[1744573523403,40.83516381,127.59,127.56,1.0]
[1744573523601,7.8364,127.61,127.57,1.0]
[1744573523803,3.99758135,127.65,127.61,1.0]
[1744573524015,40.83516381,127.62,127.59,1.0]
[1744573524210,40.83516381,127.68,127.61,1.0]
[1744573524211,7.8326,127.67,127.61,1.0]
[1744573524505,40.83516381,127.66,127.64,1.0]
[1744573524888,40.83516381,127.68,127.65,1.0]
[1744573525092,40.83516381,127.66,127.64,1.0]
[1744573525293,40.83516381,127.66,127.65,1.0]
[1744573525896,7.8302,127.71,127.65,1.0]
[1744573526096,40.83516381,127.67,127.65,1.0]
[1744573526289,7.8302,127.71,127.53,1.0]
[1744573526290,26.0,127.61,127.53,1.0]
[1744573526491,40.83516381,127.56,127.52,7.2722]
[1744573526691,40.83516381,127.59,127.57,1.0]
[1744573526891,26.0,127.64,127.57,40.83516381]
[1744573527091,0.42648471,127.7,127.62,1.0]
[1744573527295,18.79181043,127.7,127.62,1.0]
[1744573527497,40.83516381,127.65,127.62,1.0]
[1744573527802,40.83516381,127.63,127.58,1.0]
[1744573528005,40.83516381,127.6,127.56,1.0]
[1744573528209,40.83516381,127.6,127.55,49.67476381]
[1744573528400,27.4251,127.62,127.56,1.0]
[1744573528603,40.83516381,127.57,127.52,7.2722]
[1744573528915,40.83516381,127.53,127.52,1.0]
[1744573529113,40.83516381,127.53,127.49,1.0]
[1744573529283,40.83516381,127.5,127.47,7.3022]
[1744573529482,40.83516381,127.53,127.49,1.0]
[1744573529692,40.83516381,127.53,127.47,54.98216381]
[1744573529693,26.0,127.56,127.51,1.0]
[1744573529898,40.83516381,127.53,127.5,1.0]
[1744573530182,7.8408,127.54,127.48,1.0]
[1744573530389,7.8408,127.54,127.5,1.0]
[1744573530596,40.83516381,127.55,127.52,1.0]
[1744573530822,40.83516381,127.53,127.5,1.0]
[1744573530990,40.83516381,127.51,127.47,7.3022]
[1744573531184,40.83516381,127.5,127.48,1.0]
[1744573531411,27.86498471,127.56,127.48,1.0]
[1744573531616,7.8399,127.56,127.51,1.0]
[1744573531920,40.83516381,127.53,127.51,1.0]
[1744573532302,40.83516381,127.54,127.52,1.0]
[1744573532627,40.83516381,127.53,127.48,1.0]
[1744573532788,40.83516381,127.49,127.47,7.3022]
[1744573532993,27.72462314,127.55,127.48,1.0]
[1744573532994,40.83516381,127.5,127.48,1.0]
[1744573533426,27.72462314,127.55,127.5,1.0]
[1744573533589,7.8363,127.61,127.5,27.0]
[1744573533792,288.5458,127.65,127.57,1.0]
[1744573534006,40.83516381,127.59,127.57,1.0]
[1744573534221,40.83516381,127.58,127.55,1.0]
[1744573534522,40.83516381,127.6,127.53,1.0]
[1744573534830,40.83516381,127.57,127.55,1.0]
[1744573535140,40.83516381,127.6,127.56,1.0]
[1744573535335,0.14216157,127.63,127.56,1.0]
[1744573535635,40.83516381,127.68,127.5,26.0]
[1744573535636,0.063,127.69,127.62,1.0]
[1744573535833,7.832,127.68,127.62,1.0]
[1744573536009,0.063,127.69,127.63,1.0]
[1744573536228,40.83516381,127.65,127.63,1.0]
[1744573536400,0.063,127.69,127.64,1.0]
[1744573536633,0.063,127.69,127.66,1.0]
[1744573536845,40.83516381,127.67,127.66,1.0]
[1744573537135,40.83516381,127.67,127.63,1.0]
[1744573537300,0.063,127.69,127.66,1.0]
[1744573537668,40.83516381,127.67,127.64,1.0]
[1744573537833,0.063,127.69,127.61,7.8362]
[1744573537834,40.83516381,127.66,127.63,1.0]
[1744573538005,40.83516381,127.66,127.64,1.0]
[1744573538331,40.83516381,127.65,127.6,1.0]
[1744573538530,40.83516381,127.61,127.58,6.4302]
[1744573538737,0.14216157,127.65,127.47,0.03]
[1744573538738,26.0,127.63,127.52,2.0407]
[1744573539023,40.83516381,127.56,127.52,9.8824]
[1744573539238,40.83516381,127.54,127.52,2.0407]
[1744573540103,40.83516381,127.6,127.51,1.6552]
[1744573540104,40.83516381,127.53,127.51,1.6552]
[1744573540435,40.83516381,127.52,127.51,1.6552]
[1744573540605,40.83516381,127.55,127.51,9.4975]
[1744573540807,40.83516381,127.53,127.51,1.6552]
[1744573541230,40.83516381,127.54,127.51,1.6552]
[1744573541440,40.83516381,127.53,127.51,1.6552]
[1744573541643,40.83516381,127.54,127.51,9.4976]
[1744573541808,40.83516381,127.54,127.51,1.6552]
[1744573542008,7.8376,127.59,127.51,50.33286381]
[1744573542310,40.83516381,127.59,127.53,40.83516381]
[1744573542506,40.83516381,127.6,127.55,40.83516381]
[1744573542916,40.83516381,127.59,127.54,40.83516381]
[1744573543113,7.8345,127.64,127.55,40.83516381]
[1744573543330,40.83516381,127.6,127.55,40.83516381]
[1744573544140,40.83516381,127.6,127.56,7.8394]
[1744573545131,18.64964886,127.67,127.59,40.83516381]
[1744573545132,7.8326,127.67,127.59,40.83516381]
[1744573545339,40.83516381,127.65,127.6,40.83516381]
[1744573545513,7.8326,127.67,127.6,40.83516381]
[1744573545714,40.83516381,127.65,127.6,40.83516381]
[1744573545911,40.83516381,127.66,127.61,40.83516381]
[1744573546116,40.83516381,127.68,127.63,40.83516381]
[1744573546320,0.063,127.69,127.66,40.83516381]
[1744573546635,0.063,127.69,127.63,1.5478]
[1744573546636,0.063,127.69,127.68,40.83516381]
[1744573546818,0.063,127.73,127.68,40.83516381]
[1744573547017,0.063,127.73,127.65,0.28432314]
[1744573547335,0.063,127.73,127.71,40.83516381]
[1744573547528,0.063,127.73,127.72,40.83516381]
[1744573547719,0.063,127.73,127.72,47.13746381]
[1744573547924,0.063,127.74,127.72,47.13746381]
[1744573548235,3.98480669,127.87,127.75,7.8277]
[1744573548533,40.83516381,127.92,127.77,18.64964886]
[1744573548731,40.83516381,127.83,127.76,19.07613357]
[1744573548911,40.83516381,127.83,127.75,27.3971]
[1744573548912,40.83516381,127.82,127.77,40.83516381]
[1744573549247,40.83516381,127.8,127.75,48.66286381]
[1744573549437,40.83516381,127.84,127.74,50.21126381]
[1744573549622,0.14216157,127.85,127.74,9.3761]
[1744573549817,40.83516381,127.8,127.75,40.83516381]
[1744573550239,7.8234,127.83,127.75,48.66276381]
[1744573550539,40.83516381,127.79,127.74,1.5478]
[1744573550739,7.8234,127.83,127.75,40.83516381]
[1744573550940,40.83516381,127.79,127.74,50.21116381]
[1744573551123,40.83516381,127.76,127.72,6.3023]
[1744573551436,0.14216157,127.82,127.72,47.13746381]
[1744573551437,26.0,127.8,127.72,47.13746381]
[1744573551642,40.83516381,127.77,127.72,6.3023]
[1744573551815,40.83516381,127.74,127.72,6.3023]
[1744573552024,0.42648471,127.82,127.68,1.6116]
[1744573552025,40.83516381,127.73,127.68,1.6116]
[1744573552216,40.83516381,127.76,127.64,6.3502]
[1744573552217,27.3994,127.74,127.64,6.3502]
[1744573552542,27.3994,127.74,127.65,40.83516381]
[1744573552543,40.83516381,127.7,127.65,40.83516381]
[1744573552941,40.83516381,127.69,127.64,14.1845]
[1744573553235,7.8284,127.74,127.64,6.3502]
[1744573553236,40.83516381,127.68,127.64,6.3502]
[1744573553628,40.83516381,127.68,127.64,14.1845]
[1744573554028,7.8284,127.74,127.64,55.01966381]
[1744573554222,40.83516381,127.68,127.64,14.1845]
[1744573554543,40.83516381,127.68,127.64,6.3502]
[1744573554724,0.14216157,127.73,127.64,6.3502]
[1744573554930,0.14216157,127.73,127.64,14.1845]
[1744573555229,27.68372314,127.74,127.64,55.01966381]
[1744573555422,40.83516381,127.68,127.64,6.3502]
[1744573555946,40.83516381,127.67,127.64,6.3502]
[1744573556155,0.14216157,127.73,127.62,1.5869]
[1744573556156,40.83516381,127.66,127.62,1.5869]
[1744573556356,40.83516381,127.64,127.59,47.18536381]
[1744573556565,40.83516381,127.61,127.59,6.3502]
[1744573556728,0.14216157,127.67,127.56,1.5869]
[1744573556729,40.83516381,127.6,127.56,1.5869]
[1744573556934,40.83516381,127.63,127.58,40.83516381]
[1744573557457,0.42648471,127.69,127.6,40.83516381]
[1744573557763,0.42648471,127.69,127.56,29.0247]
[1744573557764,40.83516381,127.66,127.61,40.83516381]
[1744573557965,40.83516381,127.64,127.56,29.0247]
[1744573558263,48.67056381,127.63,127.57,40.83516381]
[1744573558562,40.83516381,127.62,127.57,48.67386381]
[1744573558733,40.83516381,127.63,127.58,40.83516381]
[1744573558932,40.83516381,127.68,127.59,40.83516381]
[1744573559252,40.83516381,127.64,127.59,40.83516381]
[1744573559432,40.83516381,127.6,127.56,1.5869]
[1744573559637,40.83516381,127.62,127.57,40.83516381]
[1744573559952,27.69652314,127.68,127.6,40.83516381]
[1744573560171,40.83516381,127.66,127.61,40.83516381]
[1744573560457,40.83516381,127.69,127.62,7.8353]
[1744573560637,40.83516381,127.69,127.64,40.83516381]
[1744573560836,27.54366157,127.73,127.64,40.83516381]
[1744573561147,7.8277,127.75,127.68,40.83516381]
[1744573561350,7.8277,127.75,127.65,6.3502]
[1744573561351,40.83516381,127.72,127.67,42.42206381]
[1744573561533,40.83516381,127.76,127.67,1.5869]
[1744573561534,40.83516381,127.69,127.67,1.5869]
[1744573561739,40.83516381,127.68,127.65,6.3502]
[1744573562161,40.83516381,127.69,127.65,6.3502]
[1744573562680,40.83516381,127.67,127.61,1.5869]
[1744573562828,40.83516381,127.65,127.61,1.5869]
[1744573563032,26.0,127.7,127.61,1.5869]
[1744573563256,40.83516381,127.66,127.61,42.42206381]
[1744573563451,40.83516381,127.65,127.61,1.5869]
[1744573563652,40.83516381,127.66,127.61,1.5869]
[1744573563861,40.83516381,127.68,127.63,40.83516381]
[1744573564062,8.11272314,127.74,127.66,40.83516381]
[1744573564263,40.83516381,127.71,127.66,40.83516381]
[1744573564469,40.83516381,127.73,127.67,48.66776381]
[1744573564768,40.83516381,127.72,127.67,48.66776381]
[1744573565857,40.83516381,127.68,127.61,21.177]
[1744573566158,40.83516381,127.7,127.65,40.83516381]
[1744573566355,7.8296,127.72,127.64,40.83516381]
[1744573566550,40.83516381,127.7,127.65,40.83516381]
[1744573566757,40.83516381,127.71,127.66,40.83516381]
[1744573567363,27.3971,127.75,127.62,27.4251]
[1744573567364,40.83516381,127.69,127.64,48.66916381]
[1744573567562,40.83516381,127.65,127.61,9.423]
[1744573567767,40.83516381,127.62,127.6,6.3502]
[1744573568758,40.83516381,127.61,127.56,9.3599]
[1744573568958,40.83516381,127.57,127.55,6.1541]
[1744573569165,40.83516381,127.59,127.55,13.9941]
[1744573569466,7.8347,127.64,127.57,40.83516381]
[1744573569671,40.83516381,127.62,127.57,40.83516381]
[1744573570579,40.83516381,127.61,127.56,40.83516381]
[1744573570880,40.83516381,127.63,127.57,40.83516381]
[1744573571049,40.83516381,127.64,127.59,7.8376]
[1744573571380,7.8335,127.66,127.59,48.67276381]
[1744573571860,40.83516381,127.64,127.59,48.67276381]
[1744573572061,40.83516381,127.65,127.6,40.83516381]
[1744573572266,40.83516381,127.65,127.59,68.26676381]
[1744573572459,40.83516381,127.64,127.59,48.67276381]
[1744573572973,7.832,127.68,127.59,68.26676381]
[1744573573170,40.83516381,127.65,127.59,68.26676381]
[1744573573473,40.83516381,127.61,127.58,7.838]
[1744573574472,40.83516381,127.61,127.55,46.98926381]
[1744573574473,40.83516381,127.59,127.55,6.1541]
[1744573574771,40.83516381,127.56,127.53,7.871]
[1744573575258,40.83516381,127.56,127.53,0.03]
[1744573575776,40.83516381,127.57,127.52,28.36516381]
[1744573575962,40.83516381,127.57,127.52,40.83516381]
[1744573576363,7.837,127.6,127.52,40.83516381]
[1744573576662,40.83516381,127.57,127.52,40.83516381]
[1744573577059,40.83516381,127.57,127.51,68.28296381]
[1744573577265,40.83516381,127.52,127.48,7.8443]
[1744573577465,40.83516381,127.5,127.48,7.8443]
[1744573577682,40.83516381,127.51,127.48,7.8443]
[1744573577901,0.28432314,127.58,127.48,7.8443]
[1744573577902,0.28432314,127.6,127.49,8.0603]
[1744573578062,18.79181043,127.68,127.58,1.6211]
[1744573578258,3.97608041,127.71,127.58,1.6211]
[1744573578564,7.8284,127.74,127.59,1.0]
[1744573578758,40.83516381,127.68,127.59,26.0]
[1744573578970,8.8284,127.74,127.6,7.8369]
[1744573579174,40.83516381,127.68,127.58,9.459]
[1744573579491,26.0,127.65,127.58,9.459]
[1744573579806,42.22964886,127.71,127.61,26.0]
[1744573579969,40.83516381,127.69,127.61,26.0]
[1744573580162,18.64964886,127.7,127.61,27.0]
[1744573580398,0.14216157,127.74,127.58,29.0545]
[1744573580566,0.14216157,127.74,127.62,18.64964886]
[1744573580763,5.11918296,127.74,127.59,0.42648471]
[1744573581069,40.83516381,127.66,127.58,9.459]
[1744573581381,0.14216157,127.72,127.6,40.83516381]
[1744573581574,2.7288635,127.73,127.61,18.64964886]
[1744573581774,7.8251,127.8,127.64,26.0]
[1744573581975,3.97884348,127.81,127.66,18.64964886]
[1744573582298,0.063,127.82,127.73,40.83516381]
[1744573582465,0.063,127.82,127.76,33.33516381]
[1744573582778,0.063,127.82,127.72,18.64964886]
[1744573582983,0.063,127.82,127.81,40.83516381]
[1744573583288,0.063,127.86,127.81,46.84446381]
[1744573583586,0.063,127.86,127.83,40.83516381]
[1744573583771,40.89816381,127.86,127.81,6.0093]
[1744573583969,40.83516381,127.84,127.81,6.0093]
[1744573584178,0.063,127.86,127.76,40.83516381]
[1744573584488,40.83516381,127.85,127.76,40.83516381]
[1744573584687,40.83516381,127.78,127.74,7.8284]
[1744573584864,40.83516381,127.76,127.72,7.8293]
[1744573585266,0.28432314,127.78,127.71,1.6646]
[1744573585464,0.28432314,127.78,127.71,9.4946]
[1744573585779,40.83516381,127.77,127.71,9.4946]
[1744573585962,26.0,127.79,127.71,9.4946]
[1744573586164,40.83516381,127.75,127.71,1.6646]
[1744573586366,40.83516381,127.72,127.65,7.8339]
[1744573586565,40.83516381,127.72,127.64,1.6341]
[1744573586566,40.83516381,127.67,127.64,1.6341]
[1744573586772,40.83516381,127.66,127.64,1.6341]
[1744573586990,40.83516381,127.68,127.64,9.4686]
[1744573587177,0.28432314,127.69,127.6,40.83516381]
[1744573587383,40.83516381,127.65,127.59,7.8376]
[1744573587590,40.83516381,127.6,127.57,7.9856]
[1744573587885,40.83516381,127.61,127.57,0.4856]
[1744573588499,40.83516381,127.58,127.53,40.83516381]
[1744573588701,26.0,127.64,127.5,19.6075]
[1744573588896,276.5303,127.71,127.57,40.83516381]
[1744573589084,276.5303,127.71,127.59,7.8376]
[1744573589085,0.42648471,127.67,127.59,7.8376]
[1744573589275,40.83516381,127.63,127.59,7.8376]
[1744573589872,40.83516381,127.6,127.52,19.6043]
[1744573590067,40.83516381,127.56,127.49,19.6089]
[1744573590272,40.83516381,127.55,127.49,60.44406381]
[1744573590472,40.83516381,127.58,127.53,40.83516381]
[1744573590703,0.42648471,127.67,127.52,40.83516381]
[1744573590883,0.42648471,127.67,127.54,18.64964886]
[1744573591192,40.83516381,127.59,127.54,7.8406]
[1744573591385,40.83516381,127.68,127.54,7.8406]
[1744573591583,40.83516381,127.61,127.55,40.83516381]
[1744573591971,40.83516381,127.61,127.56,40.83516381]
[1744573592298,40.83516381,127.61,127.56,33.33516381]
[1744573592485,0.42648471,127.64,127.54,27.4422]
[1744573592677,40.83516381,127.57,127.54,7.8406]
[1744573592877,40.83516381,127.6,127.52,7.8419]
[1744573593073,0.28432314,127.61,127.53,40.83516381]
[1744573593280,40.83516381,127.55,127.52,7.8419]
[1744573593794,0.42648471,127.59,127.52,7.8419]
[1744573594104,0.14216157,127.61,127.52,27.4466]
[1744573594390,18.933972,127.63,127.53,40.83516381]
[1744573594391,40.83516381,127.58,127.53,40.83516381]
[1744573594592,26.0,127.64,127.56,40.83516381]
[1744573594891,0.14216157,127.66,127.59,40.83516381]
[1744573595097,0.14216157,127.66,127.6,7.8369]
[1744573595396,40.83516381,127.64,127.6,7.8369]
[1744573595596,40.83516381,127.65,127.6,7.8369]
[1744573595894,0.14216157,127.67,127.6,7.8369]
[1744573596194,0.14216157,127.68,127.6,7.8369]
[1744573596405,40.83516381,127.64,127.6,7.8369]
[1744573596707,268.7,127.71,127.6,68.26446381]
[1744573596877,0.063,127.74,127.63,40.83516381]
[1744573597201,0.063,127.74,127.6,27.4293]
[1744573597202,40.83516381,127.69,127.65,7.8339]
[1744573597977,0.063,127.74,127.65,48.66906381]
[1744573598178,40.83516381,127.7,127.65,27.4187]
[1744573598378,40.83516381,127.69,127.65,7.8339]
[1744573598578,40.83516381,127.68,127.65,7.8339]